[Event "5th Sharjah Masters 2022"]
[Site "Sharjah"]
[Date "2022.05.21"]
[Round "1.1"]
[White "Fedoseev, Vladimir"]
[Black "Can, Emre"]
[Result "1/2-1/2"]
[ECO "B90"]
[WhiteElo "2701"]
[BlackElo "2599"]
[Annotator "TA"]
[PlyCount "90"]
[EventDate "2022.05.21"]
[EventType "swiss"]
[EventCountry "UAE"]
[SourceTitle "playchess.com"]
[Source "ChessBase"]
[SourceQuality "1"]
[TimeControl "5400+30"]

{[%evp 15,90,7,14,14,27,27,23,15,58,51,39,47,56,52,50,37,33,34,61,8,3,6,0,0,0,0,0,10,7,15,18,0,0,0,13,33,0,0,4,8,19,0,0,-104,-100,-118,-102,-108,-80,-96,-76,-87,-24,-50,-54,-48,-22,-71,-78,-83,-84,-60,-60,-62,-141,-455,-439,-499,-499,-970,-246,-364,-735,-502,0,0,0]} 1. e4 {[%emt 0:00:04]} c5 {[%emt 0:00:24]} 2. Nf3 {[%emt 0:00:16]} d6 {[%emt 0:00:19]} 3. d4 {[%emt 0:00:13]} cxd4 {[%emt 0:00:12]} 4. Nxd4 {[%emt 0:00:08]} Nf6 {[%emt 0:00:17]} 5. Nc3 {[%emt 0:00:10]} a6 {[%emt 0:00:29]} 6. Be3 {[%emt 0:00:12]} e5 {[%emt 0:00:49]} 7. Nb3 {[%emt 0:00:17]} Be6 {[%emt 0:00:37]} 8. Qd2 {[%emt 0:00:11]} Nbd7 {[%emt 0:01:32]} 9. O-O-O {[%emt 0:00:38] B90: Sicilian Najdorf: Unusual White 6th moves, 6 Be3 Ng4 and 6 Be3 e5.} Qc7 {[%emt 0:02:43] 9...b5 is setting a new trend.} 10. f3 {[%emt 0:04:24]} h5 {[%emt 0:00:46]} 11. Kb1 {[%emt 0:01:53] White has an edge.} Rc8 {[%emt 0:03:21]} 12. Nd5 {[%emt 0:04:17]} Nxd5 {[%emt 0:02:33]} 13. exd5 {[%emt 0:00:08]} Bf5 {[%emt 0:00:06][%cal Rf5c2]} 14. Bd3 {[%emt 0:00:07]} Bxd3 {[%emt 0:01:20]} 15. cxd3 {[%emt 0:01:39]} Be7 {[%emt 0:05:35]} 16. Rc1 {[%emt 0:07:07]} Qb8 {[%emt 0:05:34] [#]} 17. Qb4 $146 {[%emt 0:01:17] White is more active.} (17. Rxc8+ $1 $14 Qxc8 18. Rc1) ({Predecessor:} 17. Rxc8+ Qxc8 18. Rc1 Qb8 19. Qa5 Bd8 20. Qa4 Qa8 21. Nd2 b5 22. Qb3 O-O 23. Ne4 {1-0 (39) Akopian,V (2660)-Oparin,G (2551) Jerusalem 2015}) 17... Nf6 {[%emt 0:21:04]} 18. Qa4+ {[%emt 0:03:34]} b5 {[%emt 0:02:25]} 19. Qxa6 {[%emt 0:00:09]} O-O {[%emt 0:00:11]} 20. Na5 {[%emt 0:07:47][%cal Bb3a5,Ba5c6,Bc6b4][%mdl 32] Hoping for Nc6.} Nxd5 {[%emt 0:02:38]} 21. Bd2 {[%emt 0:01:51] Strongly threatening Nc6.} Nc7 {[%emt 0:10:57]} 22. Qc6 {[%emt 0:01:11]} Rfe8 {[%emt 0:05:43]} 23. Qd7 {[%emt 0:07:23]} Bf8 $1 {[%emt 0:02:41]} 24. Nc6 {[%emt 0:06:55]} Qa8 {[%emt 0:01:02]} 25. Nb4 {[%emt 0:00:15]} Red8 {[%emt 0:04:16]} 26. Qc6 {[%emt 0:02:07]} Qb8 {[%emt 0:00:35]} 27. Qe4 {[%emt 0:05:22]} Re8 {[%emt 0:03:03][%cal Od6d5]} 28. d4 {[%emt 0:03:26]} d5 {[%emt 0:07:27]} 29. Qh4 {[%emt 0:05:09]} (29. Qf5 $11) 29... Bxb4 {[%emt 0:01:32]} (29... Ne6 {feels hotter.} 30. Qxh5 Bxb4 31. Bxb4 Rc4) 30. Bxb4 {[%emt 0:00:07]} Ne6 $1 {[%emt 0:00:15]} 31. Qxh5 {[%emt 0:08:11]} Nxd4 {[%emt 0:01:15]} 32. f4 {[%emt 0:00:26]} Rc4 {[%emt 0:06:08]} 33. Bc3 {[%emt 0:02:51]} Nc6 {[%emt 0:04:52]} ({Black should try} 33... exf4 $17 {...Ne2 is the strong threat.} 34. Qxd5 Rd8) 34. fxe5 {[%emt 0:01:40][%cal Oe5e6]} d4 {[%emt 0:01:37]} 35. Bd2 {[%emt 0:00:43][%cal Oe5e6]} Nxe5 {[%emt 0:01:11]} 36. b3 {[%emt 0:01:13]} (36. Rce1 $1 $11) 36... Rxc1+ $17 {[%emt 0:00:50]} 37. Rxc1 {[%emt 0:02:36]} Qa8 $36 {[%emt 0:00:15][%mdl 2048] Black is really pushing.} 38. Re1 {[%emt 0:04:39]} Qxg2 {[%emt 0:01:24]} 39. Rxe5 {[%emt 0:02:22]} Rxe5 {[%emt 0:00:19]} 40. Qxe5 {[%emt 0:00:06]} Qxd2 $15 {[%emt 0:00:06] KQ-KQ} 41. Qe8+ {[%emt 0:01:19]} Kh7 {[%emt 0:00:06] Threatens to win with ...d3.} 42. Qxf7 {[%emt 0:00:09]} (42. a3 $142 Qd3+ 43. Kb2) 42... Qe1+ $2 {[%emt 0:00:37]} (42... Qd1+ 43. Kb2 Qe2+ 44. Kc1 d3 45. Qf5+ Kh6 46. Qf4+ g5) 43. Kb2 $19 {[%emt 0:01:29] [#]} Qe2+ {[%emt 0:01:10]} 44. Kc1 {[%emt 0:00:45] [#]} Qe1+ $2 {[%emt 0:01:36]} ({Better is} 44... d3 $1 $19 {[%csl Gd3][%cal Re2c2]} 45. Qf5+ Kh6 46. Qf4+ g5) 45. Kc2 {[%emt 0:00:53]} Qe2+ {[%emt 0:00:08] Weighted Error Value: White=0.26 (precise) /Black=0.38} 1/2-1/2

[Event "5th Sharjah Masters 2022"]
[Site "Sharjah"]
[Date "2022.05.21"]
[Round "1.2"]
[White "Yuffa, Daniil"]
[Black "Sargissian, Gabriel"]
[Result "1-0"]
[ECO "D38"]
[WhiteElo "2597"]
[BlackElo "2694"]
[Annotator "TA"]
[PlyCount "84"]
[EventDate "2022.05.21"]
[EventType "swiss"]
[EventCountry "UAE"]
[SourceTitle "playchess.com"]
[Source "ChessBase"]
[SourceQuality "1"]
[TimeControl "5400+30"]

{[%evp 13,84,-11,22,15,13,0,7,-2,0,7,-2,-2,9,12,44,23,41,35,45,41,56,23,22,31,52,63,58,53,89,104,76,72,114,20,20,11,25,8,36,6,10,2,81,59,59,76,103,91,91,90,196,204,190,60,222,222,340,354,357,243,234,171,367,359,526,526,518,518,518,510,608,423,29994]} 1. d4 {[%emt 0:00:07]} Nf6 {[%emt 0:00:12]} 2. c4 {[%emt 0:00:10]} e6 {[%emt 0:00:08]} 3. Nf3 {[%emt 0:00:08]} d5 {[%emt 0:00:41]} 4. Nc3 {[%emt 0:00:33]} Bb4 {[%emt 0:00:55]} 5. Qa4+ {[%emt 0:00:11]} Nc6 {[%emt 0:00:10]} 6. a3 {[%emt 0:00:05]} Bxc3+ {[%emt 0:01:34]} 7. bxc3 {[%emt 0:00:07]} Bd7 {[%emt 0:03:34][%cal Oc6d4]} 8. cxd5 $1 {[%emt 0:00:34] The main line 8.cxd5 scores better than 8.Qc2. D38: Queen's Gambit Declined: Ragozin Defence (4 Nf3 Bb4).} exd5 {[%emt 0:03:05]} 9. Qc2 {[%emt 0:00:12]} Na5 {[%emt 0:07:45][%cal Oc7c5]} 10. Bg5 {[%emt 0:03:33] The position is equal.} h6 {[%emt 0:06:35]} 11. Bh4 {[%emt 0:01:18]} c5 {[%emt 0:14:29]} 12. e3 {[%emt 0:03:48] [#]} c4 $146 {[%emt 0:08:42]} ({Predecessor:} 12... Rc8 13. Bd3 O-O 14. O-O cxd4 15. exd4 Nc4 16. Rfe1 Nd6 17. Re3 Re8 18. Ne5 g5 {1-0 (39) Sakaev,K (2629)-Gutov,A (2477) Smolensk 2000}) 13. Ne5 {[%emt 0:10:04]} g5 {[%emt 0:02:08]} 14. Bg3 {[%emt 0:02:46]} Ne4 {[%emt 0:01:52] Pair of Knights!} 15. f3 {[%emt 0:03:19]} Nxg3 {[%emt 0:02:28]} 16. hxg3 {[%emt 0:00:06]} Qe7 {[%emt 0:04:51]} 17. Be2 {[%emt 0:08:25]} O-O-O {[%emt 0:01:45]} 18. e4 {[%emt 0:03:39]} Be6 {[%emt 0:10:43]} 19. Rb1 {[%emt 0:06:44]} a6 {[%emt 0:02:05]} 20. O-O {[%emt 0:07:44]} Qc7 {[%emt 0:00:30]} 21. f4 {[%emt 0:04:34]} dxe4 {[%emt 0:00:46]} 22. Qxe4 {[%emt 0:00:39]} Kb8 {[%emt 0:05:57]} 23. Rb4 {[%emt 0:04:42] 0x0.00084271a3d6dp-1022s more active pieces.} ({White should try} 23. fxg5 $16 {And now g6 would win.} hxg5 24. Qe3) 23... f6 $1 $11 {[%emt 0:02:13]} 24. Ng4 $1 {[%emt 0:02:39]} Bd5 {[%emt 0:05:26]} 25. Qf5 {[%emt 0:02:02]} Rhe8 $1 {[%emt 0:03:40]} 26. Bf3 {[%emt 0:04:18]} Bxf3 {[%emt 0:01:08]} 27. Rxf3 {[%emt 0:00:09]} Re1+ {[%emt 0:00:45]} (27... Nb3 $1 $11 {remains equal.}) 28. Rf1 $16 {[%emt 0:01:08]} Rxf1+ {[%emt 0:00:41]} 29. Kxf1 {[%emt 0:00:04]} gxf4 {[%emt 0:04:53]} 30. gxf4 {[%emt 0:02:37]} Nb3 {[%emt 0:00:22]} 31. Nxf6 {[%emt 0:02:58] Qe5 is the strong threat.} (31. Qxf6 a5 32. Rb5 Nd2+ 33. Ke1 Ne4 $14) 31... Nxd4 {[%emt 0:00:08]} 32. cxd4 $18 {[%emt 0:01:50]} Rxd4 {[%emt 0:02:22]} 33. Ne4 {[%emt 0:03:28]} (33. Ke2 $18) 33... Qe7 {[%emt 0:00:28] Black cannot hold the game after this.} ({Better is} 33... b5 $14) 34. Nc3 {[%emt 0:02:59]} b5 {[%emt 0:01:29] [#]} (34... Qe3 $142 35. Qe5+ Qxe5 36. fxe5 Rf4+ 37. Ke2 Rf5 38. Rxc4 Rxe5+ 39. Ne4 b5) 35. Rb1 $1 {[%emt 0:04:31][%cal Oc3b5] White threatens Nxb5! and mate.} Qe3 {[%emt 0:00:52]} 36. Ne2 {[%emt 0:06:29]} (36. Qf8+ Kc7 37. Qg7+ (37. Ne2 Rd2 $18) 37... Kc6 $18) 36... Re4 {[%emt 0:01:27]} 37. Rb2 {[%emt 0:01:53][%cal Ob2d2]} Qd3 {[%emt 0:01:09]} (37... c3 {might work better.} 38. Rc2 Qd3 39. Qf8+ (39. Rxc3 $2 Qd1+ 40. Kf2 Rxe2+ 41. Kg3 Qe1+ 42. Kh2 Qxc3 $19) 39... Kb7 40. Qg7+ (40. Rxc3 $2 Qd1+ 41. Kf2 Rxe2+ 42. Kg3 Qe1+ 43. Kh2 Qxc3 $19) 40... Kb6 41. Qf6+ (41. Rxc3 $2 Qd1+ 42. Kf2 Rxe2+ 43. Kg3 Qe1+ 44. Kh2 Qh4+ 45. Rh3 Qxf4+ 46. Qg3 Qxg3+ 47. Rxg3 Ka5 $19) (41. Qxh6+ $2 Ka5 $19) 41... Kb7 42. Qg7+ (42. Rxc3 Qxe2+ 43. Kg1 Rc4 $11) 42... Kb6 43. Qf6+ (43. Rxc3 $2 Qd1+ 44. Kf2 Rxe2+ 45. Kg3 Qe1+ 46. Kh2 Qh4+ 47. Rh3 Qxf4+ 48. Qg3 Qxg3+ 49. Rxg3 Ka5 $19) (43. Qxh6+ $2 Ka5 $19) 43... Kb7 44. Qxc3 Rxf4+ 45. Ke1 Qxc3+ 46. Rxc3 Rh4) 38. Qf6 {[%emt 0:01:16][%csl LRa6,LRh6] Threatens to win with Qb6+.} ({Much less strong is} 38. Qf8+ Kb7 39. Qg7+ Kb6 40. Qxh6+ Ka5 $18) 38... c3 {[%emt 0:00:44]} (38... Qd1+ $2 39. Kf2 Kc7 40. Qxa6 Rxf4+ 41. Ke3 $18) (38... Kb7 $142 39. Qg7+ Kb6 40. Qxh6+ Ka5) 39. Qb6+ {[%emt 0:01:09] White is clearly winning.} Kc8 {[%emt 0:00:19]} 40. Qxa6+ {[%emt 0:00:39]} Kc7 {[%emt 0:00:31]} 41. Qa5+ {[%emt 0:00:29]} Kc6 {[%emt 0:00:41]} 42. Qxc3+ {[%emt 0:00:19]} Kd5 {[%emt 0:01:17] Weighted Error Value: White=0.20 (precise) /Black=0.33} (42... Qxc3 $18 43. Nxc3 Rxf4+ 44. Ke2 Rc4) 1-0

[Event "5th Sharjah Masters 2022"]
[Site "Sharjah"]
[Date "2022.05.21"]
[Round "1.3"]
[White "Salem, A.R. Saleh"]
[Black "Adly, Ahmed"]
[Result "1-0"]
[ECO "B12"]
[WhiteElo "2690"]
[BlackElo "2596"]
[Annotator "TA"]
[PlyCount "109"]
[EventDate "2022.05.21"]
[EventType "swiss"]
[EventCountry "UAE"]
[SourceTitle "playchess.com"]
[Source "ChessBase"]
[SourceQuality "1"]
[TimeControl "5400+30"]

{[%evp 9,109,23,55,34,36,41,34,26,42,40,66,67,85,78,148,148,147,116,156,158,162,165,163,123,123,120,130,126,129,116,137,122,146,143,146,146,146,146,146,151,171,173,187,187,189,146,183,146,175,146,146,146,178,154,186,159,158,144,144,144,247,244,239,195,184,217,223,228,261,256,258,242,258,245,255,227,361,372,360,366,354,337,599,567,599,601,856,839,759,716,708,702,683,679,626,593,633,356,1181,645,6065,5700]} 1. e4 {[%emt 0:00:51]} c6 {[%emt 0:00:22]} 2. d4 {[%emt 0:00:10]} d5 {[%emt 0:00:05]} 3. e5 {[%emt 0:00:05]} Bf5 {[%emt 0:00:07]} 4. Nf3 {[%emt 0:00:05]} e6 {[%emt 0:00:04]} 5. Be2 {[%emt 0:00:04]} Bb4+ {[%emt 0:03:10]} 6. Nbd2 {[%emt 0:02:38][%cal Bb1d2,Bd2f1,Bf1g3][%mdl 32] B12: Caro-Kann: Advance Variation.} Nd7 {[%emt 0:00:19]} 7. c3 $5 {[%emt 0:02:11][%mdl 4] Leaves trodden paths.} Ba5 {[%emt 0:00:23]} 8. Nf1 {[%emt 0:00:41] White is slightly better.} f6 {[%emt 0:04:51]} 9. Ng3 {[%emt 0:00:27]} Bg6 {[%emt 0:00:28]} 10. O-O {[%emt 0:00:31]} Bc7 {[%emt 0:02:11] [#]} 11. Re1 $146 {[%emt 0:02:23]} ({Predecessor:} 11. exf6 Ngxf6 12. Ng5 Qe7 13. Bg4 Nxg4 14. Qxg4 Bxg3 15. hxg3 Bf5 16. Qh5+ g6 17. Qe2 {½-½ (79) Azarov,S (2575)-Rodrigue Lemieux,S (2293) Chess.com INT 2019}) 11... f5 {[%emt 0:07:38]} ({Black should play} 11... Qe7) 12. Qb3 {[%emt 0:06:07]} Qc8 {[%emt 0:05:12]} 13. c4 {[%emt 0:02:20][%cal Bc3c4,Bc4c5][%mdl 32]} Nb6 {[%emt 0:01:10] [#]} 14. c5 $1 {[%emt 0:03:18]} Nd7 {[%emt 0:00:35]} 15. Ng5 {[%emt 0:08:57]} Nf8 {[%emt 0:02:54]} 16. h4 {[%emt 0:01:33][%cal Bh2h4,Bh4h5][%mdl 32]} h6 {[%emt 0:01:41]} 17. Nh3 {[%emt 0:00:03]} Bd8 {[%emt 0:00:58]} 18. h5 {[%emt 0:00:38]} Bf7 {[%emt 0:00:06]} 19. Bd2 {[%emt 0:03:23]} Ne7 {[%emt 0:03:28]} 20. Qc2 {[%emt 0:01:07] White is much more active.} Nh7 {[%emt 0:05:33]} 21. b4 $36 {[%emt 0:00:46][%mdl 2048] White is in control.} O-O {[%emt 0:02:31]} 22. a4 {[%emt 0:00:33]} a6 {[%emt 0:01:05]} 23. Ra3 {[%emt 0:01:33]} Kh8 {[%emt 0:07:19]} 24. Rb1 {[%emt 0:00:36]} Rg8 {[%emt 0:01:58]} 25. Qc1 {[%emt 0:00:26]} ({Don't do} 25. Nf4 g5 $16) 25... Be8 {[%emt 0:03:56]} 26. Rab3 {[%emt 0:01:29]} Ra7 {[%emt 0:02:11]} 27. Bf3 {[%emt 0:01:09]} Ra8 {[%emt 0:01:34]} 28. Kh1 {[%emt 0:01:24]} Ra7 {[%emt 0:01:46]} 29. Kh2 {[%emt 0:01:25][%cal Bh1h2,Bh2g1,Bg1f1,Bf1g2][%mdl 32]} Bc7 {[%emt 0:01:03]} 30. Kg1 {[%emt 0:00:30]} Bd8 {[%emt 0:00:14]} 31. Kf1 {[%emt 0:00:23]} Ra8 {[%emt 0:00:36]} 32. Ne2 {[%emt 0:00:21]} Qd7 {[%emt 0:02:31]} 33. g3 {[%emt 0:04:27]} Bf7 {[%emt 0:02:54]} 34. Kg2 {[%emt 0:09:23]} g5 {[%emt 0:02:10]} (34... Bc7 $16 {was called for.} 35. b5 Rgb8) 35. hxg6 $1 $18 {[%emt 0:00:53]} Nxg6 {[%emt 0:00:02]} 36. Kf1 {[%emt 0:01:06]} h5 {[%emt 0:00:24]} 37. b5 {[%emt 0:05:00]} axb5 {[%emt 0:02:08]} 38. axb5 {[%emt 0:00:02]} Ra7 {[%emt 0:00:09]} 39. Qb2 {[%emt 0:07:24]} h4 {[%emt 0:05:36]} 40. bxc6 {[%emt 0:00:55]} bxc6 {[%emt 0:00:02]} 41. Rb7 {[%emt 0:00:08]} Rxb7 {[%emt 0:00:07]} 42. Qxb7 {[%emt 0:00:10]} Qe8 {[%emt 0:00:23]} (42... Bc7 {was necessary.} 43. Rb6 Be8) 43. Ra1 {[%emt 0:01:34][%cal Bb1a1,Ba1a7,Ba7d7][%mdl 32]} hxg3 {[%emt 0:01:38]} 44. fxg3 {[%emt 0:00:19][%cal Bf2g3,Bg3g4][%mdl 32]} f4 {[%emt 0:01:59]} 45. Ra7 {[%emt 0:02:33]} ({Inferior is} 45. gxf4 Nh4 46. Qb3 Nxf3 47. Qxf3 Bh5 $14) ({Less strong is} 45. Nhxf4 Nxf4 46. Bxf4 Bh5 $18) 45... Ne7 $2 {[%emt 0:00:02]} (45... Qe7 {is a better defense.} 46. Bh5 Qxb7 47. Rxb7 Be8) 46. g4 {[%emt 0:03:16]} Bg6 {[%emt 0:04:46]} 47. Nexf4 {[%emt 0:00:53]} Be4 {[%emt 0:01:28]} 48. Bxe4 {[%emt 0:01:34]} dxe4 {[%emt 0:00:03]} 49. Qd7 {[%emt 0:00:05]} Qxd7 {[%emt 0:02:36]} 50. Rxd7 {[%emt 0:00:02]} Nd5 {[%emt 0:00:04]} 51. Nxd5 {[%emt 0:01:22]} exd5 {[%emt 0:00:04]} 52. Bh6 {[%emt 0:00:32]} Ba5 {[%emt 0:01:01]} 53. g5 {[%emt 0:04:10]} Bc3 $2 {[%emt 0:00:31]} (53... Nf8) 54. e6 {[%emt 0:02:51][%cal Be5e6,Be6e7][%mdl 32] [#] Intending e7 and mate.} Bxd4 {[%emt 0:01:24]} 55. e7 {[%emt 0:01:17] Inhibits Nf8.  Weighted Error Value: White=0.21 (precise) /Black=0.23 (precise)} 1-0

[Event "5th Sharjah Masters 2022"]
[Site "Sharjah"]
[Date "2022.05.21"]
[Round "1.4"]
[White "Mchedlishvili, Mikheil"]
[Black "Erigaisi Arjun"]
[Result "1/2-1/2"]
[ECO "D02"]
[WhiteElo "2595"]
[BlackElo "2675"]
[Annotator "TA"]
[PlyCount "139"]
[EventDate "2022.05.21"]
[EventType "swiss"]
[EventCountry "UAE"]
[SourceTitle "playchess.com"]
[Source "ChessBase"]
[SourceQuality "1"]
[TimeControl "5400+30"]

{[%evp 11,139,25,19,18,23,22,15,22,13,8,13,12,15,6,6,5,9,10,7,16,0,12,19,0,0,-17,-8,0,0,0,0,-33,-37,-45,22,18,13,25,25,0,0,0,-7,-32,-32,-114,-103,-104,-19,-23,-10,-53,-13,-12,-18,-35,-67,-114,-71,-164,-22,-40,0,0,0,0,0,0,0,-45,-45,-52,-60,-58,-66,-52,-57,-96,-96,-96,-99,-104,-115,-79,0,0,0,-76,-8,-4,0,0,0,0,0,0,0,0,0,0,0,0,0,0,0,0,0,0,0,0,0,0,0,0,0,0,0,0,0,0,0,0,0,0,0,0,0,0,0,0]} 1. d4 {[%emt 1:31:00]} Nf6 {[%emt 1:31:00]} 2. Bf4 {[%emt 0:00:30]} d5 {[%emt 0:00:30]} 3. Nf3 {[%emt 0:00:30]} c5 {[%emt 0:00:30]} 4. e3 {[%emt 0:00:30]} Nc6 {[%emt 0:00:30]} 5. Nbd2 {[%emt 0:00:30]} Bg4 {[%emt 0:00:30]} 6. c3 {[%emt 0:00:30]} e6 {[%emt 0:00:30]} 7. Qb3 {[%emt 0:00:30] D02: 1 d4 d5 2 Nf3 sidelines, including 2...Nf6 3 g3 and 2...Nf6 3 Bf4.} Qc8 {[%emt 0:00:30]} 8. Nh4 {[%emt 0:00:30]} Bh5 {[%emt 0:00:30]} 9. h3 {[%emt 0:00:30] [#]} h6 $146 {[%emt 0:00:30]} ({Predecessor:} 9... cxd4 10. exd4 Qd7 11. Bd3 Bd6 12. Bxd6 Qxd6 13. O-O O-O 14. Rfe1 Rab8 15. a4 g5 {½-½ (62) Sadhwani,R (2628)-Narayanan,S (2559) Chess.com INT 2022}) 10. g4 {[%emt 0:00:30]} g5 $1 {[%emt 0:00:30] [#]} 11. Bh2 {[%emt 0:00:30][%cal Od4c5]} Bxg4 {[%emt 0:00:30]} 12. hxg4 {[%emt 0:00:30]} gxh4 {[%emt 0:00:30]} 13. Be2 {[%emt 0:00:30]} Rg8 {[%emt 0:00:30]} 14. Bf4 {[%emt 0:00:30]} cxd4 {[%emt 0:00:30]} 15. cxd4 {[%emt 0:00:30]} Nxg4 {[%emt 0:00:30]} 16. Rxh4 {[%emt 0:00:30]} f5 {[%emt 0:00:30]} 17. Bxg4 {[%emt 0:00:30]} fxg4 {[%emt 0:00:30]} 18. Bxh6 {[%emt 0:00:30]} Bd6 {[%emt 0:00:30]} 19. Ke2 $1 {[%emt 0:00:30]} g3 {[%emt 0:00:30]} 20. Rg1 {[%emt 0:00:30]} (20. Bf4 Bxf4 21. Rxf4 g2 $15) 20... Qc7 {[%emt 0:00:30]} (20... g2 21. f4 $16) 21. fxg3 {[%emt 0:00:30]} (21. f4 $5 {[%cal Rh6g5]}) 21... O-O-O {[%emt 0:00:30]} (21... Rxg3 $2 22. Rxg3 Bxg3 23. Bf4 Bxf4 24. Rh8+ Ke7 25. Rxa8 $18) 22. Bf4 {[%emt 0:00:30]} e5 {[%emt 0:00:30]} ({Better is} 22... Bxf4 $15 23. Rxf4 Kb8) 23. dxe5 $11 {[%emt 0:00:30]} Bxe5 {[%emt 0:00:30]} 24. Nf3 {[%emt 0:00:30]} Bxf4 {[%emt 0:00:30]} 25. Rxf4 {[%emt 0:00:30]} (25. gxf4 Rxg1 26. Nxg1 Nd4+ $1 27. exd4 Qe7+ 28. Kd2 Qxh4 $17) 25... Kb8 {[%emt 0:00:30]} 26. Kf2 {[%emt 0:00:30]} Qh7 {[%emt 0:00:30]} 27. Qc3 {[%emt 0:00:30] Prevents Na5.} Rc8 {[%emt 0:00:30][%cal Od5d4][%mdl 1024] Black has compensation.} 28. Rh4 {[%emt 0:00:30] Inhibits d4.} ({White should play} 28. g4 $15) 28... Qg6 $17 {[%emt 0:00:30]} 29. Rf4 {[%emt 0:00:30][%cal Bh4f4,Bf4f5,Bf5d5][%mdl 32]} Ka8 {[%emt 0:00:30]} (29... d4 $1 $17 {[%cal Rd4c3]} 30. Qd2 (30. Nxd4 $2 Nxd4 31. Qxd4 Rc2+ 32. Ke1 Re8 $19) (30. exd4 $2 Ne7 $19) 30... dxe3+ 31. Qxe3 Rge8) 30. g4 $11 {[%emt 0:00:30]} Ne7 {[%emt 0:00:30]} 31. Qf6 {[%emt 0:00:30]} Qc2+ $1 {[%emt 0:00:30]} 32. Kg3 {[%emt 0:00:30]} Ng6 {[%emt 0:00:30]} 33. Rf5 {[%emt 0:00:30]} Qc7+ {[%emt 0:00:30]} 34. Kg2 {[%emt 0:00:30]} (34. Kh3 $15 {is more appropriate.}) 34... a6 {[%emt 0:00:30]} 35. Rf1 {[%emt 0:00:30]} (35. Rh1 $17 {was necessary.}) 35... Qc2+ {[%emt 0:00:30]} ({Black should try} 35... Qc4 $19 36. Rg5 (36. Nd4 Rce8 $17) 36... Rcf8) 36. Kg3 {[%emt 0:00:30]} Rce8 {[%emt 0:00:30] aiming for ...Re4.} 37. Rxd5 {[%emt 0:00:30]} Qc7+ {[%emt 0:00:30]} 38. Qd6 {[%emt 0:00:30]} Qh7 {[%emt 0:00:30]} 39. Rh5 {[%emt 0:00:30]} Qf7 {[%emt 0:00:30]} 40. Rf5 {[%emt 0:00:30]} Qc4 {[%emt 0:00:30]} 41. Kf2 {[%emt 0:00:30]} (41. Nd4 $2 Rxe3+ 42. R1f3 Re4 $19) 41... Qxg4 {[%emt 0:00:30]} (41... Qe4 42. Qd4 Qc2+ 43. Qd2 $11) 42. Rg5 {[%emt 0:00:30]} Qe4 {[%emt 0:00:30]} 43. Qd4 {[%emt 0:00:30]} Qc6 {[%emt 0:00:30]} 44. Qd5 {[%emt 0:00:30]} Qf6 {[%emt 0:00:30]} (44... Qb6 $6 45. Qd4 Qc7 46. Qc5 $11) 45. Qd4 {[%emt 0:00:30]} Qf7 {[%emt 0:00:30]} 46. Qd5 {[%emt 0:00:30]} Qe7 {[%emt 0:00:30]} 47. Qc5 {[%emt 0:00:30] [#]} Qf6 {[%emt 0:00:30]} (47... Qe6 $1 $17 {...Rgf8 is the strong threat.} 48. Rfg1 Rgf8 49. Rxg6 Qe4) 48. Qd4 $1 {[%emt 0:00:30]} Qf7 {[%emt 0:00:30]} (48... Qf8 $11) 49. Qd5 $1 $17 {[%emt 0:00:30] [#]} Qg7 {[%emt 0:00:30]} (49... Qh7 $1 $17 {And now ...Rgf8 would win.} 50. Rfg1 (50. Qf5 $2 Rgf8 $19) 50... Ne7 51. Rxg8 Nxd5 52. Rxe8+ Ka7) 50. Qd4 $132 {[%emt 0:00:30][%mdl 2048] White has counterplay. The position is equal.} Qh7 {[%emt 0:00:30]} 51. Rfg1 $1 {[%emt 0:00:30]} Re6 {[%emt 0:00:30]} 52. Rd5 {[%emt 0:00:30]} Qc7 {[%emt 0:00:30]} 53. Rd1 {[%emt 0:00:30]} Ree8 $1 {[%emt 0:00:30] Inhibits Rd8+. White must now prevent ...Rgf8.} 54. Rd7 {[%emt 0:00:30]} Qc6 {[%emt 0:00:30] Strongly threatening ...Rgf8.} 55. Qd5 {[%emt 0:00:30] Threatens to win with Qxc6. Chess con chili.} Qb6 {[%emt 0:00:30][%csl LRb2,LRe3]} 56. Qd4 {[%emt 0:00:30] Active counter play!} Qe6 {[%emt 0:00:30]} 57. Rd6 $1 {[%emt 0:00:30]} Qxa2 {[%emt 0:00:30]} ({But not} 57... Qf5 58. Qd5 Qxd5 59. R1xd5 $16) 58. Qb6 {[%emt 0:00:30]} Qc4 {[%emt 0:00:30][%cal Oc4c8] Hoping for ...Qc8!} 59. Rd8+ {[%emt 0:00:30]} ({Don't go for} 59. Rxg6 $2 Qc2+ 60. Rd2 Qxg6 61. Qxg6 Rxg6 $19) 59... Rxd8 {[%emt 0:00:30]} 60. Rxd8+ {[%emt 0:00:30]} Rxd8 {[%emt 0:00:30]} 61. Qxd8+ {[%emt 0:00:30][%mdl 4096] Endgame KQN-KQN} Ka7 {[%emt 0:00:30]} 62. Qf6 {[%emt 0:00:30]} Qc2+ {[%emt 0:00:30]} 63. Kg3 {[%emt 0:00:30]} Qe4 {[%emt 0:00:30]} 64. Qc3 {[%emt 0:00:30]} Ne7 {[%emt 0:00:30]} 65. Qc5+ {[%emt 0:00:30]} Ka8 {[%emt 0:00:30]} 66. Kf2 {[%emt 0:00:30]} Nd5 {[%emt 0:00:30]} 67. Qc8+ {[%emt 0:00:30]} Ka7 {[%emt 0:00:30]} 68. Qc5+ {[%emt 0:00:30]} Ka8 {[%emt 0:00:30]} 69. Qc8+ {[%emt 0:00:30]} Ka7 {[%emt 0:00:30]} 70. Qc5+ {[%emt 0:00:30] Weighted Error Value: White=0.08 (flawless) /Black=0.13 (very precise)} 1/2-1/2